Workbook

Sheet AH
A1: Item No | B1: Description | C1: Spares and Consumables Required | D1: OP | E1: IN | F1: IR | G1: GO | H1: Dur/ Htr (Hrs) | I1: Dur/ Unit (Hrs) | J1: SE | K1: A | L1: W | M1: S/S | N1: L | O1: Price/ Htr | P1: Price/ Unit
A2: Air Heater | D2: X | E2: X | F2: X | G2: X
A3: 0 | B3: General | D3: X | E3: X | F3: X | G3: X
A4: =A3+0.01 -> 0.01 | B4: Site establishment for OP | D4: X
A5: =A4+0.01 -> 0.02 | B5: Site establishment for IN | E5: X
A6: 0.03 | B6: Site establishment for IR | F6: X
A7: 0.04 | B7: Site establishment for GO | G7: X
A8: 0.05 | B8: Site de-establishment for OP | D8: X
A9: 0.06 | B9: Site de-establishment for IN | E9: X
A10: 0.07 | B10: Site de-establishment for IR | F10: X
A11: 0.08 | B11: Site de-establishment for GO | G11: X
A12: 0.09 | B12: Open inspection doors top (5 off) | D12: X | E12: X | F12: X | G12: X
A13: 0.10 | B13: Open inspection doors bottom (5 off) (scaffolding required in 4 areas but excluded) | D13: X | E13: X | F13: X | G13: X
A14: 0.11 | B14: Close inspection doors top including fitting new seals | D14: X | E14: X | F14: X | G14: X
A15: 0.12 | B15: Close inspection doors bottom including fitting new seals | D15: X | E15: X | F15: X | G15: X
A16: 0.13 | B16: Open locating bearing guard | E16: X | F16: X | G16: X
A17: 0.14 | B17: Close locating bearing guard | E17: X | F17: X | G17: X
A18: 0.15 | B18: Retract axial seal door | E18: X | F18: X | G18: X
A19: 0.16 | B19: Re-engage axial seal door | E19: X | F19: X | G19: X
A20: 0.17 | B20: Remove stainless steel compensator cover plates | E20: X | F20: X | G20: X
A21: 0.18 | B21: Refit stainless steel compensator cover plates | E21: X | F21: X | G21: X
A22: 0.19 | B22: Open both pinion drive inspection doors | E22: X | F22: X | G22: X
A23: 0.20 | B23: Close both pinion inspection doors | E23: X | F23: X | G23: X
A24: 0.21 | B24: Open pin rack inspection door | E24: X | F24: X | G24: X
A25: 0.22 | B25: Close pin rack inspection door | E25: X | F25: X | G25: X
A26: 0.23 | B26: Clean view ports | E26: X | F26: X | G26: X
A27: 1 | B27: Air Heater Inspection OP | D27: X | E27: X | F27: X | G27: X
A28: =A27+0.01 -> 1.01 | B28: Visually inspect the air heater for any damage and erosion | D28: X
A29: 2 | B29: Air Heater Inspection IN | D29: X | E29: X | F29: X | G29: X
A30: =A29+0.01 -> 2.01 | B30: a) Visually inspect air heater rotor b) Visually inspect radial seals for damage and erosion c) Visually inspect axial seals for damage and wear including holding strips d) Visually inspect circumferential seals e) Visually inspect sector plates f) Visually inspect axial seal plates g) Visually inspect top and bottom tyre for damage and erosion h) Visually inspect casing internally for damage and erosion i) Visually inspect drive system for oil leaks j) Visually inspect lubrication system for oil leaks. k) Visually inspect packs for damage, erosion and loose plates l) Visually inspect stay rods in ducting for damage and wear m) Visually inspect fire protection system for damage and erosion. n) Visually inspect the expansion joint covers for damage and wear. o) Visually inspect the hub seals for damage and wear p) Visually inspect the sootblower system for erosion and damage. q) Visually inspect spring pin to seal frame connection r) Inspect pin rack and drive system s) Inspect shaft seals t) Inspect cast iron wear shoes | E30: X
A31: 3 | B31: Air Heater Inspection IR | D31: X | E31: X | F31: X | G31: X
A32: =A31+0.01 -> 3.01 | B32: a) Visually inspect air heater rotor b) Visually inspect radial seals for damage and erosion c) Visually inspect axial seals for damage and wear including holding strips d) Visually inspect circumferential seals for damage and wear e) Visually inspect sector plates for damage and erosion f) Visually inspect axial seal plates for damage and erosion g) Visually inspect top and bottom tyre for damage and erosion h) Visually inspect casing internally for damage and erosion i) Visually inspect drive system for oil leaks j) Visually inspect lubrication system for oil leaks. k) Visually inspect packs for damage, erosion and loose plates l) Visually inspect stay rods in ducting for damage and wear m) Visually inspect fire protection system for damage and erosion. n) Visually inspect the expansion joint covers for damage and wear. o) Visually inspect the hub seals for damage and wear p) Visually inspect the sootblower system for erosion and damage. q) Visually inspect spring pin to seal frame connection r) Inspect pin rack and drive system s) Inspect shaft seals t) Inspect cast iron wear shoes | F32: X
A33: 4 | B33: Air Heater Inspection GO | D33: X | E33: X | F33: X | G33: X
A34: =A33+0.01 -> 4.01 | B34: a) Visually inspect air heater rotor b) Visually inspect radial seals for damage and erosion c) Visually inspect axial seals for damage and wear including holding strips d) Visually inspect circumferential seals for damage and wear e) Visually inspect sector plates for damage and erosion f) Visually inspect axial seal plates for damage and erosion g) Visually inspect top and bottom tyre for damage and erosion h) Visually inspect casing internally for damage and erosion i) Visually inspect drive system for oil leaks j) Visually inspect lubrication system for oil leaks. k) Visually inspect packs for damage, erosion and loose plates l) Visually inspect stay rods in ducting for damage and wear m) Visually inspect fire protection system for damage and erosion. n) Visually inspect the expansion joint covers for damage and wear. o) Visually inspect the hub seals for damage and wear p) Visually inspect the sootblower system for erosion and damage. q) Visually inspect spring pin to seal frame connection r) Inspect pin rack and drive system s) Inspect shaft seals t) Inspect cast iron wear shoes | G34: X
A35: 5 | B35: Rotor Radial Seals | D35: X | E35: X | F35: X | G35: X
A36: =A35+0.01 -> 5.01 | B36: Remove the complete set of radial seals on the hot end
A37: =A36+0.01 -> 5.02 | B37: Refit the complete set of radial seals on the hot end.
A38: 5.03 | B38: Remove the complete set of radial seals on the cold end
A39: 5.04 | B39: Refit the complete set of radial seals on the cold end.
A40: 5.05 | B40: Remove 1 radial seal plate hot end
A41: 5.06 | B41: Refit 1 radial seal plate hot end
A42: 5.07 | B42: Remove 4 radial seal plate hot end
A43: 5.08 | B43: Refit 4 radial seal plate hot end
A44: 5.09 | B44: Remove 16 radial seal plate hot end
A45: 5.10 | B45: Refit 16 radial seal plate hot end
A46: 5.11 | B46: Remove 1 radial seal plate cold end
A47: 5.12 | B47: Refit 1 radial seal plate cold end
A48: 5.13 | B48: Remove 4 radial seal plate cold end
A49: 5.14 | B49: Refit 4 radial seal plate cold end
A50: 5.15 | B50: Remove 16 radial seal plate cold end
A51: 5.16 | B51: Refit 16 radial seal plate cold end
A52: 6 | B52: Hub Seals | D52: X | E52: X | F52: X | G52: X
A53: =A52+0.01 -> 6.01 | B53: Remove the hub seals hot end
A54: 6.02 | B54: Refit the hub seals hot end
A55: 6.03 | B55: Remove the hub seals cold end
A56: 6.04 | B56: Refit the hub seals cold end
A57: 7 | B57: Shaft Labyrinth Seals | D57: X | E57: X | F57: X | G57: X
A58: =A57+0.01 -> 7.01 | B58: Remove hot end shaft labyrinth seals
A59: 7.02 | B59: Refit hot end shaft labyrinth seals
A60: 8 | B60: Axial Seals | D60: X | E60: X | F60: X | G60: X
A61: =A60+0.01 -> 8.01 | B61: Remove all the axial seals
A62: 8.02 | B62: Refit all the axial seals
A63: 8.03 | B63: Remove 4 axial seals
A64: 8.04 | B64: Refit 4 axial seals.
A65: 8.05 | B65: Remove all the axial seal holding strips
A66: 8.06 | B66: Refit all the axial seal holding strips
A67: =A66+0.01 -> 8.07 | B67: Remove 8 off the axial seal holding strips
A68: 8.08 | B68: Refit 8 off the axial seal holding strips
A69: 9 | B69: Circumferential Seals Gas Side Hot End | D69: X | E69: X | F69: X | G69: X
A70: =A69+0.01 -> 9.01 | B70: Remove all the circumferential seals on the hot end gas side
A71: =A70+0.01 -> 9.02 | B71: Refit all the circumferential seals on the hot end gas side including setting to correct seal settings
A72: 9.03 | B72: Remove 8 sections off the circumferential seals gas side hot end
A73: 9.04 | B73: Refit 8 sections off the circumferential seals gas side hot end including setting to correct seal settings
A74: 9.05 | B74: Adjust complete hot end gas side circumferential seals to correct settings
A75: 10 | B75: Circumferential Seals Gas Side Cold End | D75: X | E75: X | F75: X | G75: X
A76: =A75+0.01 -> 10.01 | B76: Remove all the circumferential seals on the cold end gas side
A77: =A76+0.01 -> 10.02 | B77: Refit all the circumferential seals on the cold end gas side including setting to correct seal settings
A78: 10.03 | B78: Remove 8 sections off the circumferential seals cold end gas side
A79: 10.04 | B79: Refit 8 sections off the circumferential seals cold end gas side including setting to correct seal settings
A80: 10.05 | B80: Adjust complete cold end gas side circumferential seals to correct settings
A81: 11 | B81: Circumferential Seals Secondary Air Side Hot End Both Sectors | D81: X | E81: X | F81: X | G81: X
A82: =A81+0.01 -> 11.01 | B82: Remove all the circumferential seals on the hot end air side
A83: =A82+0.01 -> 11.02 | B83: Refit all the circumferential seals on the hot end air side including setting to correct seal settings
A84: 11.03 | B84: Remove 8 sections off the circumferential seals hot end air side
A85: 11.04 | B85: Refit 8 sections off the circumferential seals hot end air side including setting to correct seal settings
A86: 11.05 | B86: Adjust complete hot end air side circumferential seals to correct settings
A87: 12 | B87: Circumferential Seals Secondary Air Side Cold End Both Sectors | D87: X | E87: X | F87: X | G87: X
A88: =A87+0.01 -> 12.01 | B88: Remove all the circumferential seals on the cold end air side
A89: =A88+0.01 -> 12.02 | B89: Refit all the circumferential seals on the cold end air side including setting to correct seal settings
A90: 12.03 | B90: Remove 8 sections off the circumferential seals cold end air side
A91: 12.04 | B91: Refit 8 sections off the circumferential seals cold end air side including setting to correct seal settings
A92: 12.05 | B92: Adjust complete cold end air side circumferential seals to correct settings
A93: 13 | B93: Cover Plates Hot End | D93: X | E93: X | F93: X | G93: X
A94: =A93+0.01 -> 13.01 | B94: Remove radial to circumferential cover plate air side
A95: =A94+0.01 -> 13.02 | B95: Refit radial to circumferential cover plate air side
A96: 13.03 | B96: Remove radial to circumferential cover plate gas side
A97: 13.04 | B97: Refit radial to circumferential cover plate gas side
A98: 14 | B98: Cover Plates Cold End | D98: X | E98: X | F98: X | G98: X
A99: =A98+0.01 -> 14.01 | B99: Remove radial to circumferential cover plate air side
A100: 14.02 | B100: Refit radial to circumferential cover plate air side
A101: 14.03 | B101: Remove radial to circumferential cover plate gas side
A102: 14.04 | B102: Refit radial to circumferential cover plate gas side
A103: 15 | B103: Seal Frame Beam 1 Hot End FFP Side | D103: X | E103: X | F103: X | G103: X
A104: =A103+0.01 -> 15.01 | B104: Remove the complete seal frame beam
A105: =A104+0.01 -> 15.02 | B105: Refit the complete seal frame beam
A106: 15.03 | B106: Remove one section of the seal frame beam
A107: 15.04 | B107: Refit one section of the seal frame beam
A108: 15.05 | B108: Remove four sections of the seal frame beam
A109: 15.06 | B109: Refit four sections of the seal frame beam
A110: 16 | B110: Seal Frame Beam 2 Hot End | D110: X | E110: X | F110: X | G110: X
A111: =A110+0.01 -> 16.01 | B111: Remove the complete seal frame beam
A112: =A111+0.01 -> 16.02 | B112: Refit the complete seal frame beam
A113: 16.03 | B113: Remove one section of the seal frame beam
A114: 16.04 | B114: Refit one section of the seal frame beam
A115: 16.05 | B115: Remove four sections of the seal frame beam
A116: 16.06 | B116: Refit four sections of the seal frame beam
A117: 17 | B117: Seal Frame Beam 3 Hot End | D117: X | E117: X | F117: X | G117: X
A118: =A117+0.01 -> 17.01 | B118: Remove the complete seal frame beam
A119: =A118+0.01 -> 17.02 | B119: Refit the complete seal frame beam
A120: 17.03 | B120: Remove one section of the seal frame beam
A121: 17.04 | B121: Refit one section of the seal frame beam
A122: 17.05 | B122: Remove four sections of the seal frame beam
A123: 17.06 | B123: Refit four sections of the seal frame beam
A124: 18 | B124: Seal Frame Beam 4 Hot End (Boiler Side) | D124: X | E124: X | F124: X | G124: X
A125: =A124+0.01 -> 18.01 | B125: Remove the complete seal frame beam
A126: =A125+0.01 -> 18.02 | B126: Refit the complete seal frame beam
A127: 18.03 | B127: Remove one section of the seal frame beam
A128: 18.04 | B128: Refit one section of the seal frame beam
A129: 18.05 | B129: Remove four sections of the seal frame beam
A130: 18.06 | B130: Refit four sections of the seal frame beam
A131: 19 | B131: Seal Frame Beam 1 Cold End FFP Side | D131: X | E131: X | F131: X | G131: X
A132: =A131+0.01 -> 19.01 | B132: Remove the complete seal frame beam
A133: =A132+0.01 -> 19.02 | B133: Refit the complete seal frame beam
A134: 19.03 | B134: Remove one section of the seal frame beam
A135: 19.04 | B135: Refit one section of the seal frame beam
A136: 19.05 | B136: Remove four sections of the seal frame beam
A137: 19.06 | B137: Refit four sections of the seal frame beam
A138: 20 | B138: Seal Frame Beam 2 Cold End | D138: X | E138: X | F138: X | G138: X
A139: =A138+0.01 -> 20.01 | B139: Remove the complete seal frame beam
A140: =A139+0.01 -> 20.02 | B140: Refit the complete seal frame beam
A141: 20.03 | B141: Remove one section of the seal frame beam
A142: 20.04 | B142: Refit one section of the seal frame beam
A143: 20.05 | B143: Remove four sections of the seal frame beam
A144: 20.06 | B144: Refit four sections of the seal frame beam
A145: 21 | B145: Seal Frame Beam 3 Cold End | D145: X | E145: X | F145: X | G145: X
A146: =A145+0.01 -> 21.01 | B146: Remove the complete seal frame beam
A147: =A146+0.01 -> 21.02 | B147: Refit the complete seal frame beam
A148: 21.03 | B148: Remove one section of the seal frame beam
A149: 21.04 | B149: Refit one section of the seal frame beam
A150: 21.05 | B150: Remove four sections of the seal frame beam
A151: 21.06 | B151: Refit four sections of the seal frame beam
A152: 22 | B152: Seal Frame Beam 4 Cold End (Boiler Side) | D152: X | E152: X | F152: X | G152: X
A153: =A152+0.01 -> 22.01 | B153: Remove the complete seal frame beam
A154: =A153+0.01 -> 22.02 | B154: Refit the complete seal frame beam
A155: 22.03 | B155: Remove one section of the seal frame beam
A156: 22.04 | B156: Refit one section of the seal frame beam
A157: 22.05 | B157: Remove four sections of the seal frame beam
A158: 22.06 | B158: Refit four sections of the seal frame beam
A159: 23 | B159: Spring Pins Hot End | D159: X | E159: X | F159: X | G159: X
A160: =A159+0.01 -> 23.01 | B160: Remove all 25 off spring pin assemblies and actuators on the hot end
A161: 23.02 | B161: Refit all 25 off spring pin assemblies and actuators on the hot end
A162: 23.03 | B162: Remove 5 off spring pin assemblies and actuators on the hot end
A163: 23.04 | B163: Refit 5 off spring pin assemblies and actuators on the hot end
A164: 23.05 | B164: Remove 1 off spring pin assembly and actuator on the hot end
A165: 23.06 | B165: Refit 1 off spring pin assembly and actuator on the hot end
A166: 23.07 | B166: Remove all 8 off hub spring pin assemblies on the hot end
A167: 23.08 | B167: Refit all 8 off hub spring pin assemblies on the hot end
A168: 23.09 | B168: Remove 5 off hub spring pin assemblies on the hot end
A169: 23.10 | B169: Refit 5 off hub spring pin assemblies on the hot end
A170: 23.11 | B170: Remove 1 off hub spring pin assembly on the hot end
A171: 23.12 | B171: Refit 1 off hub spring pin assembly on the hot end
A172: 23.13 | B172: Service the spring pin glands on all 33 off the spring pin assemblies hot end
A173: 23.14 | B173: Service the spring pin glands on 5 off spring pin assemblies hot end
A174: 23.15 | B174: Service the spring pin gland on 1 off spring pin assembly hot end
A175: 24 | B175: Spring Pins Cold End | D175: X | E175: X | F175: X | G175: X
A176: 24.01 | B176: Remove all (25 off) spring pin assemblies and actuators on the cold end
A177: 24.02 | B177: Refit all (25 off) spring pin assemblies and actuators on the cold end
A178: 24.03 | B178: Remove 5 off spring pin assemblies and actuators on the cold end
A179: 24.04 | B179: Refit all 5 off spring pin assemblies and actuators on the cold end
A180: 24.05 | B180: Remove 1 off spring pin assembly and actuator on the cold end
A181: 24.06 | B181: Refit 1 off spring pin assembly and actuator on the cold end
A182: 24.07 | B182: Remove all 8 off hub spring pin assemblies on the cold end
A183: 24.08 | B183: Refit all 8 off hub spring pin assemblies on the cold end
A184: 24.09 | B184: Remove 5 off hub spring pin assemblies on the cold end
A185: 24.10 | B185: Refit 5 off hub spring pin assemblies on the cold end
A186: 24.11 | B186: Remove 1 off hub spring pin assembly on the cold end
A187: 24.12 | B187: Refit 1 off hub spring pin assembly on the cold end
A188: 24.13 | B188: Service the spring pin glands on all 33 off the spring pin assemblies cold end
A189: 24.14 | B189: Service the spring pin glands on 5 off spring pin assemblies cold end
A190: 24.15 | B190: Service the spring pin gland on 1 off spring pin assembly cold end
A191: 25 | B191: Spring Pins Axial Seals | D191: X | E191: X | F191: X | G191: X
A192: 25.01 | B192: Remove all 2 off spring pin assemblies and actuators on the axial seals
A193: 25.02 | B193: Refit all 2 off spring pin assemblies and actuators on the axial seals
A194: 25.03 | B194: Remove all 12 off spring pin assemblies on the axial seals
A195: 25.04 | B195: Refit all 12 off spring pin assemblies on the axial seals
A196: 25.05 | B196: Remove 4 off spring pin assemblies on the axial seals
A197: 25.06 | B197: Refit 4 off spring pin assemblies on the axial seals
A198: 25.07 | B198: Remove 1 off spring pin assembly on the axial seals
A199: 25.08 | B199: Refit 1 off spring pin assembly on the axial seals
A200: 25.09 | B200: Service the spring pin glands on all 14 off the spring pin assemblies on the axial seals
... 274 more rows
